bitfinex-derivatives/quotes_ETHF0:USTF0_20251012
["timestamp","ask_amount","ask_price","bid_price","bid_amount"]
[1760242838895,0.00272015,3816.6,3816.5,1.1698]
[1760242839397,0.28032015,3816.6,3816.5,1.1698]
[1760242840098,0.00272015,3816.6,3816.5,1.1698]
[1760242841601,0.00272015,3816.6,3816.5,6.1698]
[1760242841796,0.2213,3817.6,3816.6,0.415]
[1760242842002,0.0787,3818.0,3816.6,0.415]
[1760242842197,0.8094,3817.5,3817.4,0.47106]
[1760242842701,0.81255073,3817.5,3817.4,0.4738387]
[1760242842903,0.81255073,3817.5,3817.4,1.4541387]
[1760242842904,0.00315073,3817.5,3817.4,1.4541387]
[1760242854095,0.81255073,3817.5,3817.4,0.0027787]
[1760242854301,5.90275073,3817.5,3817.4,0.0027787]
[1760242855105,0.2994,3816.3,3816.2,0.88619]
[1760242855404,0.5921,3815.8,3815.7,0.6976]
[1760242856103,0.5921,3815.8,3815.7,0.70078011]
[1760242859698,0.2173,3816.8,3816.5,0.415]
[1760242859899,0.5921,3816.6,3816.5,0.5969]
[1760242860105,1.19340501,3816.6,3816.5,0.5969]
[1760242860699,0.2173,3817.3,3816.5,1.1622]
[1760242861004,0.60047721,3817.2,3816.6,0.88615]
[1760242861209,0.5921,3816.2,3816.0,0.1819]
[1760242861408,0.8094,3816.1,3816.0,0.1819]
[1760242861611,0.8094,3815.9,3815.8,0.415]
[1760242861802,0.2173,3816.3,3815.8,0.9803]
[1760242862105,0.2173,3816.8,3816.2,1.4515]
[1760242862298,0.2927,3816.4,3816.3,0.9803]
[1760242862500,0.60133504,3816.7,3816.6,0.2826]
[1760242862700,1.1496626,3817.3,3816.7,0.415]
[1760242862905,0.89396953,3817.2,3817.1,0.6976]
[1760242863810,0.89396953,3817.2,3817.1,0.9803]
[1760242863811,0.60126953,3817.2,3817.1,0.9803]
[1760242865009,1.17326953,3817.2,3817.1,0.415]
[1760242865214,0.60126953,3817.2,3817.1,0.9664]
[1760242865606,0.90096953,3817.2,3817.1,0.9664]
[1760242865803,1.17326953,3817.2,3817.1,0.9664]
[1760242866003,0.00315073,3817.5,3817.1,0.9664]
[1760242866209,0.00315073,3817.5,3817.4,0.968]
[1760242866408,0.00315073,3817.5,3817.4,1.43906]
[1760242872522,0.30285073,3817.5,3817.4,1.43906]
[1760242873216,0.57515073,3817.5,3817.4,0.4166]
[1760242873412,0.2062,3817.4,3817.1,0.4166]
[1760242873611,0.2723,3817.2,3817.1,0.6903]
[1760242873912,0.572,3817.2,3817.1,0.6903]
[1760242874420,0.572,3817.2,3817.1,0.4166]
[1760242874615,0.7782,3817.2,3817.1,0.4166]
[1760242875618,0.2997,3817.2,3817.1,0.968]
[1760242875821,0.2997,3817.3,3817.2,0.968]
[1760242876120,0.00315073,3817.5,3817.3,0.4166]
[1760242876419,0.57515073,3817.5,3817.4,0.968]
[1760242877216,0.00315073,3817.5,3817.4,1.43906]
[1760242883719,0.47091,3818.7,3818.1,0.47096]
[1760242883926,0.47091,3818.7,3818.1,1.16126]
[1760242883927,0.2997,3818.2,3818.1,1.16126]
[1760242884118,0.572,3818.2,3818.1,0.6903]
[1760242884323,0.572,3818.2,3818.0,0.1637]
[1760242884324,0.572,3817.9,3817.8,0.8876]
[1760242884526,0.572,3817.9,3817.8,1.1613]
[1760242884724,0.57445073,3817.9,3817.8,1.1613]
[1760242886020,0.78065073,3817.9,3817.8,0.4166]
[1760242886222,0.2997,3817.1,3817.0,1.20441]
[1760242886416,0.2997,3817.1,3817.0,1.62101]
[1760242886614,0.572,3817.1,3817.0,1.1499]
[1760242886822,0.7782,3817.1,3817.0,0.5985]
[1760242887424,0.2062,3817.0,3816.7,0.4166]
[1760242887729,0.7782,3816.6,3816.5,0.1819]
[1760242888025,0.7782,3816.6,3816.0,0.1637]
[1760242888230,0.572,3816.2,3816.1,0.4166]
[1760242888424,0.7782,3816.2,3816.1,0.4166]
[1760242888927,0.7782,3816.2,3815.7,0.47443011]
[1760242888928,0.7782,3815.8,3815.7,0.00318011]
[1760242889124,0.60236852,3815.8,3815.0,0.5803]
[1760242889324,0.2062,3815.6,3815.0,0.5803]
[1760242889626,0.2062,3815.4,3815.0,0.5803]
[1760242889826,0.47129,3815.5,3815.0,0.5803]
[1760242890127,0.47129,3815.5,3815.0,0.58351551]
[1760242890321,0.2062,3815.4,3815.1,0.4166]
[1760242890718,0.2062,3815.5,3815.0,0.16691551]
[1760242890924,0.47128,3815.6,3815.1,0.4166]
[1760242891125,0.6774,3816.3,3815.7,0.4166]
[1760242891329,0.2062,3816.4,3815.8,0.4166]
[1760242891830,0.2062,3816.9,3816.2,0.47119]
[1760242892021,0.2062,3816.9,3816.0,0.1637]
[1760242892022,0.59984003,3816.8,3816.4,0.4166]
[1760242892221,0.2062,3816.9,3816.5,0.5803]
[1760242892428,0.2062,3816.9,3816.6,0.4166]
[1760242892923,10.0941,3817.1,3816.6,0.4166]
[1760242893226,4.0962277,3817.0,3816.0,0.1637]
[1760242893431,0.2062,3816.5,3815.8,0.47125]
[1760242894028,0.2062,3816.5,3815.9,0.47123]
[1760242894229,0.2062,3816.5,3816.1,0.4126]
[1760242894423,0.47113,3816.9,3816.1,0.4126]
[1760242894729,0.47117,3816.6,3816.1,0.4126]
[1760242895032,0.47113,3816.8,3816.1,0.4126]
[1760242895227,0.1913,3816.4,3816.1,0.4126]
[1760242895531,0.47113,3816.8,3816.2,0.4126]
[1760242896031,0.1913,3816.7,3816.2,0.4712]
[1760242896229,0.66243,3816.8,3816.2,0.8838]
[1760242896729,0.1913,3816.8,3816.2,0.8838]
[1760242897130,0.1913,3816.8,3816.0,0.1662]
[1760242897131,0.1913,3816.9,3816.0,0.1662]
[1760242898031,0.1913,3816.6,3816.0,1.05002]
[1760242898727,0.1913,3816.9,3815.5,0.1637]
[1760242898926,0.47118,3816.4,3815.8,0.4126]
[1760242899625,0.1913,3816.3,3815.7,0.88386]
[1760242900029,0.6625,3816.3,3815.7,0.88386]
[1760242902428,1.22649,3817.0,3815.7,0.4165]
[1760242902629,0.1873,3816.8,3815.7,0.4165]
[1760242902926,0.2796,3815.8,3815.7,0.6915]
[1760242903733,0.2796,3815.8,3815.7,1.16276]
[1760242904427,0.2796,3815.8,3815.7,1.43576]
[1760242904628,0.5485,3815.8,3815.7,1.43576]
[1760242904837,0.5485,3815.8,3815.7,0.9645]
[1760242905135,1.01972,3816.1,3816.0,0.865]
[1760242905430,1.01972,3816.1,3815.0,0.16691551]
[1760242905431,0.7358,3815.2,3815.0,0.16691551]
[1760242905732,0.9394,3815.0,3814.9,0.4165]
[1760242905929,1.41075,3815.0,3814.5,0.12381551]
[1760242906133,1.27054,3815.5,3814.5,0.39881551]
[1760242906134,0.5485,3814.6,3814.5,0.39881551]
[1760242906330,0.5485,3814.6,3814.5,0.67181551]
[1760242906530,0.28248174,3814.6,3814.5,0.6751373]
[1760242906729,0.00288174,3814.6,3814.5,1.0916373]
[1760242906931,0.28248174,3814.6,3814.5,1.0916373]
[1760242907534,0.55138174,3814.6,3814.5,1.0916373]
[1760242907729,0.55138174,3814.6,3814.5,0.69482179]
[1760242907730,0.94228174,3814.6,3814.5,0.69482179]
[1760242907931,0.2796,3815.6,3815.5,1.138]
[1760242908132,0.3909,3815.9,3815.6,0.88777]
[1760242908333,0.2796,3815.9,3815.8,0.6915]
[1760242908534,0.2796,3815.9,3815.8,1.16275]
[1760242908740,0.3909,3816.4,3815.9,0.4165]
[1760242908931,0.8621,3816.3,3815.6,0.88777]
[1760242909240,0.3909,3815.7,3815.2,0.4165]
[1760242909535,0.86216,3815.8,3815.2,0.47132]
[1760242909938,0.3909,3815.8,3814.6,0.4165]
[1760242910129,0.3909,3815.2,3814.6,0.4165]
[1760242910328,0.0923,3815.5,3814.5,0.00332179]
[1760242910329,0.3909,3815.4,3814.5,0.00332179]
[1760242910630,0.52006,3815.0,3814.5,0.00332179]
[1760242910829,0.47137,3814.9,3814.5,0.00332179]
[1760242911035,0.3909,3814.8,3814.5,0.41982179]
[1760242911240,0.3909,3814.8,3814.5,0.00332179]
[1760242911437,0.3909,3814.8,3814.5,0.41982179]
[1760242911640,0.3909,3814.9,3814.5,0.89122179]
[1760242911943,0.47134,3815.1,3814.7,0.4165]
[1760242912236,0.3909,3815.0,3814.7,0.4165]
[1760242912441,0.3909,3815.0,3814.5,0.00332179]
[1760242912442,0.3909,3815.4,3814.6,0.4165]
[1760242912845,0.3909,3815.4,3815.1,0.47133]
[1760242913144,0.3909,3815.4,3815.2,0.4165]
[1760242913332,0.3909,3815.5,3815.2,0.4165]
[1760242913538,0.3909,3815.4,3814.9,0.47136]
[1760242913742,0.3909,3815.3,3814.6,0.47139]
[1760242913940,0.47135,3815.1,3814.6,0.47139]
[1760242914139,0.4714,3814.7,3814.5,0.00332179]
[1760242914345,0.3909,3814.6,3814.5,0.00332179]
[1760242914542,0.47136,3814.9,3814.5,0.41982179]
[1760242914841,0.3909,3814.9,3814.6,0.4165]
[1760242915044,0.3909,3815.2,3814.6,0.4165]
[1760242916047,0.3909,3815.9,3815.2,0.47132]
[1760242916340,0.3909,3815.7,3815.0,0.1735]
[1760242916546,0.86211,3816.2,3815.6,0.4165]
[1760242916754,0.9915487,3816.1,3815.9,0.4165]
[1760242916947,0.6006487,3816.0,3815.9,0.4165]
[1760242917255,0.9915487,3816.0,3815.8,0.88775]
[1760242917450,0.6006487,3815.9,3815.8,0.88775]
[1760242918251,0.6006487,3815.9,3815.8,0.4165]
[1760242918451,0.9915487,3815.9,3815.8,0.4165]
[1760242918849,0.3909,3816.3,3815.9,0.47124]
[1760242919051,0.60098818,3816.2,3816.1,0.4165]
[1760242919247,0.60098818,3816.2,3815.8,0.4165]
[1760242919449,0.99188818,3816.1,3815.8,0.4165]
[1760242919648,0.60098818,3816.0,3815.8,0.4165]
[1760242919949,0.3909,3816.1,3815.8,0.4165]
[1760242920145,0.60096128,3816.0,3815.9,0.4165]
[1760242920346,0.60096128,3816.0,3815.9,0.88774]
[1760242920546,0.39320979,3816.4,3816.2,0.4165]
[1760242920849,0.3909,3816.3,3816.2,0.4165]
[1760242921445,0.00230979,3816.4,3816.3,0.4165]
[1760242921642,0.51975,3817.5,3817.0,0.4165]
[1760242921845,0.4832,3817.0,3816.5,0.47116]
[1760242922047,0.4832,3817.0,3816.4,0.47117]
[1760242922647,0.48646111,3817.0,3816.4,0.47117]
[1760242923849,0.09556111,3817.0,3816.5,0.47116]
[1760242924051,0.00326111,3817.0,3816.8,0.47112]
[1760242924252,0.00326111,3817.0,3816.9,0.3974]
[1760242925751,0.38516111,3817.0,3816.9,0.3974]
[1760242925947,0.38516111,3817.0,3816.5,0.159]
[1760242926152,0.3819,3816.9,3816.2,0.3974]
[1760242926453,0.47114,3816.8,3816.2,0.86859]
[1760242926654,0.3819,3816.9,3815.8,0.3974]
[1760242926853,0.08656111,3817.0,3815.8,0.3974]
[1760242926854,0.3819,3816.7,3815.8,0.3974]
[1760242927751,0.08656111,3817.0,3815.3,0.86871]
[1760242927752,0.47124,3815.9,3815.3,0.86871]
[1760242927959,0.3819,3816.0,3815.3,0.3974]
[1760242928162,0.9323626,3816.8,3815.0,0.1735]
[1760242928163,0.3819,3816.8,3816.3,0.47118]
[1760242928452,0.3819,3816.7,3816.2,0.4712]
[1760242928648,0.47114,3816.8,3816.2,0.4712]
[1760242928848,0.3819,3816.6,3816.5,0.47117]
[1760242929055,0.00326111,3817.0,3816.9,0.86852]
[1760242929548,0.00326111,3817.0,3816.9,5.86852]
[1760242929959,0.85284,3818.4,3817.8,0.3974]
[1760242930156,0.9323626,3818.8,3817.5,0.159]
[1760242930157,0.97811475,3818.3,3817.9,0.3974]
[1760242930360,0.97811475,3818.3,3817.5,0.159]
[1760242930361,0.47093,3818.4,3817.6,0.47102]
[1760242930653,0.3819,3818.3,3817.7,0.47101]
[1760242930959,0.3819,3818.2,3818.1,0.3974]
[1760242931153,0.00213256,3818.3,3818.1,0.3974]
[1760242931453,0.00213256,3818.3,3818.2,0.3974]
[1760242934751,0.38403256,3818.3,3818.2,0.3974]
[1760242934954,0.00213256,3818.3,3818.2,0.3974]
[1760242939662,0.38403256,3818.3,3818.2,0.3974]
[1760242939862,0.38403256,3818.3,3818.1,0.47096]
[1760242940166,0.00213256,3818.3,3818.2,0.3974]
[1760242943166,0.38403256,3818.3,3817.7,0.00233981]
[1760242943365,0.38403256,3818.3,3817.7,0.39973981]
[1760242943963,0.3819,3818.1,3817.7,0.39973981]
[1760242944261,0.3819,3818.1,3817.7,0.00233981]
[1760242944469,0.47096,3818.2,3817.7,0.00233981]
[1760242944470,0.3819,3818.2,3817.7,0.00233981]
[1760242944967,0.4681,3818.0,3817.7,0.00233981]
[1760242945175,0.0862,3818.0,3817.7,0.00233981]
[1760242946065,0.3819,3817.9,3817.7,0.00233981]
[1760242946466,0.3819,3817.8,3817.7,0.00233981]
[1760242947364,0.3819,3818.1,3817.8,0.3974]
[1760242948075,0.47096,3818.2,3817.8,0.3974]
[1760242948373,0.3819,3818.0,3817.8,0.3974]
[1760242948572,0.3819,3818.0,3817.9,0.3974]
[1760242948778,0.00213256,3818.3,3818.2,0.47096]
[1760242948971,0.00213256,3818.3,3818.2,0.86836]
[1760242951781,0.38403256,3818.3,3818.2,0.86836]
[1760242952073,0.00213256,3818.3,3818.2,0.86836]
[1760242954671,0.92223256,3818.3,3818.2,1.14136]
[1760242954974,0.92223256,3818.3,3818.2,0.47096]
[1760242955171,0.3674,3818.2,3818.1,0.47096]
[1760242955476,0.5619,3818.0,3817.9,1.14119]
[1760242956075,0.5619,3818.0,3817.9,1.40109]
[1760242957171,0.5619,3818.0,3817.7,0.00233981]
[1760242957172,0.56403256,3818.3,3818.2,1.14116]
[1760242957373,0.3674,3818.2,3818.0,0.47097]
[1760242957569,0.9293,3818.1,3818.0,1.14117]
[1760242957770,0.5619,3818.1,3818.0,1.14117]
[1760242958178,0.5619,3818.1,3818.0,1.29787]
[1760242958670,0.00213256,3818.3,3818.2,0.47096]
[1760242958970,0.00213256,3818.3,3818.2,1.40106]
[1760242959377,0.59914966,3818.3,3818.2,1.40106]
[1760242959678,0.87804966,3818.3,3818.2,1.40106]
[1760242959978,1.16104966,3818.3,3818.2,0.9301]
[1760242963276,0.59914966,3818.3,3818.2,0.9301]
[1760242963777,0.85954966,3818.3,3818.2,0.9301]
[1760242965184,1.13034966,3818.3,3818.2,0.9301]
[1760242966178,1.49394966,3818.3,3818.2,0.9301]
[1760242966369,1.49394966,3818.3,3818.1,0.47096]
[1760242966574,1.4918171,3818.2,3818.1,0.47096]
[1760242966775,1.4918171,3818.2,3818.1,0.88226]
[1760242967078,1.1282171,3818.2,3818.1,1.40476]
[1760242967778,1.1282171,3818.2,3818.1,0.6745]
[1760242967981,0.8948,3817.8,3817.7,0.00233981]
[1760242968178,1.49202545,3817.8,3817.7,0.00233981]
[1760242968570,1.96303545,3817.8,3817.7,0.00233981]
[1760242968780,0.5312,3817.1,3816.7,1.37950761]
[1760242968971,0.8948,3816.7,3816.5,0.5703]
[1760242969169,0.5312,3816.7,3816.6,1.40495]
[1760242969484,0.83464,3817.6,3816.5,0.1555]
[1760242969682,0.2604,3817.2,3817.1,0.2632]
[1760242969881,0.2604,3817.2,3817.1,1.40732864]
[1760242971082,0.5312,3817.2,3817.1,1.40732864]
[1760242971281,0.8948,3817.6,3817.5,0.47104]
[1760242971478,1.13419802,3817.6,3817.5,1.56034]
[1760242972179,0.5312,3818.1,3818.0,1.14547]
[1760242972384,0.00213256,3818.3,3818.2,0.99346]
[1760242972687,0.26253256,3818.3,3818.2,1.40476]
[1760242973183,0.00213256,3818.3,3818.2,1.40476]
[1760242974087,0.00213256,3818.3,3818.2,6.40476]
[1760242974786,0.5312,3819.3,3819.2,0.88213]
[1760242975182,1.13394455,3819.3,3819.2,1.40463]
[1760242975391,0.86314455,3819.3,3819.2,1.40463]
[1760242975687,0.26375889,3819.3,3819.2,1.40463]
[1760242975890,0.00335889,3819.3,3819.2,1.40463]
[1760242976185,0.00335889,3819.3,3819.2,0.88213]
[1760242977683,0.00335889,3819.3,3819.2,5.88213]
[1760242979285,0.00335889,3819.3,3819.2,0.88213]
[1760242981596,0.00335889,3819.3,3819.2,0.4113]
[1760242981891,0.36695889,3819.3,3819.2,0.4113]
[1760242982090,0.00335889,3819.3,3819.2,0.4113]
[1760242983290,0.36695889,3819.3,3819.2,0.4113]
[1760242983593,0.00335889,3819.3,3819.1,0.4113]
[1760242983994,0.3532,3819.1,3818.8,0.4178]
[1760242984290,0.35655889,3819.3,3818.9,0.47086]
[1760242984495,0.35655889,3819.3,3819.0,0.587]
[1760242984792,0.3532,3819.2,3819.1,0.4178]
[1760242984987,0.3532,3819.2,3818.7,0.47089]
[1760242985291,0.3532,3819.1,3818.8,0.47087]
[1760242985492,0.35655889,3819.3,3818.9,0.4178]
[1760242985688,0.00335889,3819.3,3819.2,0.4178]
[1760242986581,0.9810626,3821.0,3819.2,5.0]
[1760242986891,0.47061,3821.1,3820.5,0.1692]
[1760242986892,0.60385555,3820.9,3820.5,0.1692]
[1760242987091,0.60385555,3820.8,3820.6,0.4178]
[1760242987285,0.47062,3821.0,3820.4,0.47068]
[1760242987286,0.3532,3820.7,3820.4,0.47068]
[1760242987487,0.3532,3821.4,3820.5,0.587]
[1760242987684,0.61253284,3821.3,3820.5,0.58973593]
[1760242987897,0.3532,3821.0,3820.5,1.06040593]
[1760242988185,0.3532,3820.7,3820.5,0.42053593]
[1760242988382,0.3532,3820.9,3820.5,0.42053593]
[1760242988699,0.3532,3821.3,3820.6,0.4178]
[1760242988892,0.61221684,3821.2,3820.8,0.4178]
[1760242989095,0.00316015,3821.4,3821.2,0.47058]
[1760242989394,0.3532,3821.3,3821.0,0.4178]
[1760242989587,0.00316015,3821.4,3821.0,0.4178]
[1760242989990,1.39679174,3822.4,3821.0,0.4178]
[1760242989991,0.022,3822.8,3822.2,0.4178]
[1760242990189,0.1567,3823.5,3822.1,1.17619]
[1760242990398,0.1567,3823.5,3823.2,0.47034]
[1760242991097,0.15901213,3823.5,3823.2,0.47300854]
[1760242992294,0.3914,3823.4,3823.2,0.47300854]
[1760242994992,0.3914,3823.4,3822.1,0.47047]
[1760242995400,0.3914,3823.4,3821.8,0.47051]
[1760242996097,0.3914,3823.4,3822.2,0.47046]
[1760242996602,0.3914,3823.4,3821.8,0.00193389]
[1760242996794,0.47041,3822.7,3821.8,0.00193389]
[1760242997098,0.1567,3822.5,3821.8,0.00193389]
[1760242997399,0.3914,3821.9,3821.8,0.00193389]
[1760242997996,0.3914,3822.4,3821.8,5.00193389]
[1760242998203,0.3914,3822.8,3821.8,0.00193389]
[1760242998401,0.3914,3822.8,3822.1,0.47046]
[1760242998795,0.3914,3822.8,3822.2,0.47045]
[1760242998990,0.1567,3823.0,3822.4,0.47044]
[1760242999197,0.5481,3823.0,3822.4,0.47044]
[1760242999596,0.5481,3823.0,3821.8,0.00193389]
[1760242999799,0.5481,3823.0,3822.4,0.47044]
[1760243000297,0.5481,3823.0,3822.1,0.47047]
[1760243000498,1.01848,3823.0,3822.1,0.47047]
[1760243000700,0.47039,3822.9,3822.1,0.47047]
[1760243000897,0.5481,3823.0,3821.8,0.00193389]
[1760243000898,0.5481,3823.0,3822.2,0.47045]
[1760243001806,0.5481,3823.0,3822.3,0.47044]
[1760243002199,0.5481,3823.0,3822.4,0.47043]
[1760243003505,1.01848,3823.0,3822.3,0.47044]
[1760243003707,0.5481,3823.0,3821.8,0.00193389]
[1760243003901,0.3914,3822.9,3821.9,0.4705]
[1760243004405,0.3914,3822.9,3821.8,0.00193389]
[1760243004704,0.3914,3822.9,3822.2,0.47045]
[1760243005007,0.86179,3822.9,3822.2,0.47045]
[1760243005503,0.1567,3823.0,3821.8,0.00193389]
[1760243005504,0.1567,3822.5,3822.0,0.47049]
[1760243005704,0.3914,3821.9,3821.8,0.00193389]
[1760243009109,0.3914,3822.9,3821.8,5.00193389]
[1760243009304,0.47041,3822.7,3822.0,0.47048]
[1760243009610,0.3914,3821.9,3821.8,0.00193389]
[1760243012808,0.3914,3822.0,3821.8,0.00193389]
[1760243013005,0.3914,3822.4,3821.8,0.00193389]
[1760243013306,0.5481,3822.0,3821.9,0.4705]
[1760243013501,0.1567,3822.5,3822.1,0.47047]
[1760243013708,0.425,3822.4,3822.3,0.47045]
[1760243015010,0.1567,3822.5,3822.3,0.47045]
[1760243015311,0.425,3822.7,3822.6,0.47041]
[1760243016709,0.5817,3823.0,3822.9,0.47038]
[1760243017214,0.425,3823.0,3822.9,0.47038]
[1760243017517,0.425,3823.4,3823.3,0.47032]
[1760243018508,0.15901213,3823.5,3822.1,1.38128118]
[1760243018713,0.5906,3823.0,3822.9,0.47038]
[1760243020214,0.1656,3823.0,3822.7,0.4704]
[1760243020418,0.425,3822.9,3822.8,0.47038]
[1760243020618,0.425,3823.4,3822.1,1.1762]
[1760243020815,0.425,3823.2,3822.1,1.1762]
[1760243021016,0.425,3823.3,3821.8,1.38321507]
[1760243021220,0.1656,3823.0,3821.8,1.38321507]
[1760243021417,0.4072,3822.4,3822.3,0.47044]
[1760243021716,0.4072,3822.4,3822.3,0.47045]
[1760243022119,0.4072,3822.9,3822.8,0.47038]
[1760243022315,0.1656,3823.0,3822.8,0.47038]
[1760243022519,0.5728,3823.0,3822.8,0.47038]
[1760243022716,0.4072,3822.9,3822.8,0.47038]
[1760243023614,0.1656,3823.0,3822.8,0.47038]
[1760243023815,0.4072,3823.3,3823.2,0.47034]
[1760243024515,0.4072,3823.3,3822.1,1.38128118]
[1760243024516,0.4072,3823.3,3823.0,0.47036]
[1760243024712,0.15901213,3823.5,3823.1,0.47034]
[1760243024713,0.4072,3823.4,3823.1,0.47034]
[1760243025715,0.4072,3823.4,3822.1,1.38128118]
[1760243025925,0.4072,3822.9,3822.8,0.47038]
[1760243026515,0.166,3823.0,3821.8,1.38321507]
[1760243026716,0.4072,3822.8,3821.8,0.00193389]
[1760243026912,0.4072,3822.8,3822.6,0.47041]
[1760243027719,0.166,3823.0,3822.0,1.17621]
[1760243027916,0.166,3822.5,3822.3,0.47044]
[1760243028118,0.4072,3822.8,3822.7,0.4704]
[1760243028317,0.4072,3822.8,3821.8,0.00193389]
[1760243028516,0.4072,3821.9,3821.8,0.47244389]
[1760243030223,0.4072,3821.9,3821.8,0.00193389]
[1760243030421,0.4072,3821.9,3820.7,1.85469371]
[1760243030422,0.4072,3821.4,3820.7,1.38128118]
[1760243030624,0.4072,3821.4,3821.3,0.47057]
[1760243030923,0.166,3821.5,3821.3,0.47057]
[1760243031123,0.4072,3821.9,3821.8,0.47051]
[1760243031425,0.4072,3821.9,3821.8,0.00309302]
[1760243032022,0.166,3822.5,3822.3,0.47045]
[1760243032226,0.4072,3822.4,3822.3,0.47045]
[1760243032934,0.4072,3822.4,3821.9,0.4705]
[1760243032935,0.166,3822.0,3821.9,0.4705]
[1760243033119,0.5732,3822.0,3821.9,0.4705]
[1760243034322,0.4072,3822.4,3821.8,0.00309302]
[1760243034521,0.4072,3822.4,3822.2,0.47045]
[1760243034729,0.4072,3822.4,3822.0,0.47048]
[1760243034925,0.166,3822.0,3821.8,0.47360302]
[1760243035130,0.4072,3821.9,3821.8,0.47360302]
[1760243035725,0.4072,3821.9,3821.8,0.00309302]
[1760243035932,6.47229486,3821.9,3821.8,0.00309302]
[1760243036224,6.00179486,3821.9,3821.8,0.00309302]
[1760243036427,5.4072,3821.9,3821.8,0.00309302]
[1760243037020,0.166,3822.5,3821.8,0.00309302]
[1760243037226,0.166,3822.0,3821.9,0.47049]
[1760243037429,0.5732,3822.0,3821.8,0.00309302]
[1760243039230,0.4072,3821.9,3821.8,0.47359302]
[1760243039623,0.4072,3821.9,3821.8,0.00309302]
[1760243040021,0.87772,3821.9,3821.8,0.00309302]
[1760243040223,5.87772,3821.9,3821.8,0.00309302]
[1760243040924,5.4072,3821.9,3821.8,0.00309302]
[1760243043327,5.4072,3821.9,3820.5,1.17667]
[1760243043328,0.47077,3819.9,3819.8,0.26530054]
[1760243043524,0.47077,3819.9,3818.3,0.47095]
[1760243043525,0.4072,3818.9,3817.6,2.33648086]
[1760243043723,0.4072,3818.9,3816.7,0.21676969]
[1760243043927,0.62375008,3818.8,3817.9,0.471]
[1760243044136,0.4059,3818.9,3818.1,0.47099]
[1760243044331,0.87911903,3818.9,3818.1,0.00282401]
[1760243044633,0.1539,3818.5,3818.1,0.00282401]
[1760243044827,0.00231903,3818.9,3818.1,0.00282401]
[1760243045028,9.777,3820.0,3818.2,5.0]
[1760243045230,10.1829,3820.0,3818.3,1.17741]
[1760243045429,9.777,3820.0,3819.8,0.47077]
[1760243045634,9.777,3820.0,3818.4,1.17738]
[1760243045635,0.4059,3820.4,3819.9,0.47075]
[1760243046138,0.4059,3820.3,3819.6,0.4708]
[1760243046333,0.4059,3820.3,3819.9,0.47076]
[1760243046637,0.5598,3820.0,3819.9,0.47076]
[1760243047231,0.1539,3820.0,3819.6,0.47079]
[1760243048032,0.1539,3820.0,3818.7,1.17727]
[1760243048033,0.1539,3820.0,3819.7,0.47078]
[1760243048431,0.62466,3820.0,3818.3,1.17741]
[1760243048632,0.1539,3819.5,3819.0,0.47087]
[1760243048832,0.4059,3819.4,3818.7,0.47091]
[1760243049038,0.87673,3819.4,3818.6,0.47092]
[1760243049235,0.87673,3819.4,3818.8,0.4709]
[1760243049236,0.1539,3819.0,3818.8,0.4709]
[1760243049436,0.4059,3818.9,3818.1,0.00282401]
[1760243049639,0.1539,3819.0,3818.5,0.47093]
[1760243049939,0.4059,3818.9,3818.5,0.47093]
[1760243050141,0.1539,3819.0,3818.5,0.47093]
[1760243050341,0.4059,3818.9,3818.5,0.47093]
[1760243050532,0.4059,3818.9,3818.1,0.00282401]
[1760243050533,0.4059,3819.3,3819.1,0.47085]
[1760243050729,0.4059,3819.3,3818.1,0.00282401]
[1760243051335,0.4059,3819.3,3818.5,0.47094]
[1760243051538,0.1539,3819.0,3818.1,0.00282401]
[1760243051838,0.4059,3818.7,3818.1,0.47380401]
[1760243052040,0.4059,3818.7,3818.1,0.00282401]
[1760243052439,0.4059,3819.4,3818.9,0.47088]
[1760243053140,0.1539,3819.0,3818.9,0.47088]
[1760243053340,0.5598,3819.0,3818.1,0.00282401]
[1760243053636,0.1539,3818.5,3818.1,0.00282401]
[1760243053835,0.1539,3818.5,3818.1,0.47380401]
[1760243054235,0.4059,3818.4,3818.1,0.47380401]
[1760243054635,0.1539,3818.5,3818.1,0.47380401]
[1760243054835,0.1539,3818.5,3818.1,0.00282401]
[1760243055341,0.1539,3818.0,3816.4,1.17797]
[1760243055549,0.4059,3817.9,3817.7,0.47104]
[1760243055755,0.4059,3817.9,3817.5,0.47106]
[1760243056051,0.4059,3817.9,3817.7,0.47103]
[1760243056253,0.4059,3817.9,3817.8,0.02932855]
[1760243061155,0.4059,3817.4,3817.2,0.47109]
[1760243061658,0.1539,3817.5,3817.2,0.47109]
[1760243061855,0.4059,3817.4,3817.3,0.47108]
[1760243062056,0.40783981,3817.4,3817.3,0.4736358]
[1760243062456,0.00193981,3817.4,3817.3,0.4736358]
[1760243063359,0.40783981,3817.4,3817.3,0.4736358]
[1760243064459,0.00193981,3817.4,3817.3,0.4736358]
[1760243065162,0.40783981,3817.4,3817.3,0.4736358]
[1760243067165,0.40783981,3817.4,3817.3,0.4736458]
[1760243067663,0.40783981,3817.4,3817.3,0.0025558]
[1760243073464,1.05978781,3817.4,3817.3,0.0025558]
[1760243074062,0.00193981,3817.4,3817.3,0.0025558]
[1760243074572,0.1539,3818.0,3817.4,0.0843]
[1760243074766,0.4316,3818.2,3817.8,0.55532]
[1760243074767,0.05846604,3817.9,3817.8,0.55532]
[1760243074973,0.4316,3818.2,3818.1,0.47099]
[1760243075466,0.43384637,3818.2,3818.1,0.47099]
[1760243076566,1.37040988,3818.2,3818.1,0.47099]
[1760243077365,0.43384637,3818.2,3818.1,0.47099]
[1760243077558,1.37100535,3818.2,3818.1,0.47099]
[1760243077762,0.43384637,3818.2,3818.1,0.47099]
[1760243080073,1.37221027,3818.2,3818.1,0.47099]
[1760243080269,0.4316,3817.4,3817.3,0.0025558]
[1760243080464,1.37035237,3817.4,3816.7,0.47115]
[1760243080769,0.93875237,3816.9,3815.9,1.17813]